Cogmind - Beta 16.1 @@@ ROGUE MODE // 2026.03.10 @ 23:20:16 Player: Trione_3 Result: Destroyed by P-80 Master with Gamma Rifle Performance ------------- Evolutions (7) 3500 Regions Visited (9) 1800 Robots Destroyed (43) 215 Value Destroyed (1220) 1220 Prototype IDs (11) 220 Alien Tech Used (0) 0 Bonus (500) 500 TOTAL SCORE: 7455 Bonus ------- Entered DSFs 500 Cogmind --------- Core Integrity 0/1300 Matter 128/300 Energy 100/100 System Corruption 2% Temperature Cool (0) Movement Core (50) Location -3/Research Parts ------- > --- POWER (2) -------- (None) > --- PROPULSION (6) --- (None) > --- UTILITY (10) ----- Faulty Spectral Analyzer Improved Salvage Targeting Computer Improved Salvage Targeting Computer Hacking Suite > --- WEAPON (3) ------- (None) > --- INVENTORY (5) ---- Micro Antimatter Reactor Medium Storage Unit Field Recycling Unit (0) Magnetic Acceleration Cannon Mass Driver Peak State ------------ > --- POWER ------------ Neutrino Core Micro Fission Core > --- PROPULSION ------- Carbon-fiber Leg Armored Leg Armored Leg Linear Gravjet > --- UTILITY ---------- Improved Heat Sink Medium Storage Unit Advanced Sensor Array Advanced Targeting Computer Improved Target Analyzer Advanced ECM Suite Hacking Suite System Shield Field Recycling Unit > --- WEAPON ----------- Lightning Gun Tesla Rifle Heavy Laser > --- INVENTORY -------- Fusion Compressor Reinforced Fission Core Improved Cooling System Medium Storage Unit Improved Sensor Array Energy Filter Tesla Rifle Long-range Proton Cannon Improved Remote Datajack [Rating: 78] Favorites ----------- Power Light Ion Engine Engine Light Ion Engine Power Core Micro Fission Core Reactor Micro Antimatter Reactor Propulsion Flight Unit Treads Improved Treads Leg Armored Leg Wheel Compact Wheel Hover Unit Linear Gravjet Flight Unit Flight Unit Utility System Shield Device Improved Cooling System Storage Medium Storage Unit Processor Improved Salvage Targeting Computer Hackware System Shield Protection Light Armor Plating Weapon Lightning Gun Energy Gun Lightning Gun Energy Cannon Long-range Proton Cannon Ballistic Gun Assault Rifle Ballistic Cannon Magnetic Acceleration Cannon Special Weapon Improved Remote Datajack Impact Weapon Hammer Build | -11 -10 -9 -8 -7 -7 -6 -5 -4 -3 ------- Run | Yrd Mat Mat Mat Fac DSF Fac Fac Fac Res Slots Evolved 14 | . . 2 2 2 . 2 2 2 2 Power 1 | . . . . 1 . . . . . Propulsion 4 | . . 1 1 1 . . . . 1 Utility 8 | . . 1 1 . . 1 2 2 1 Weapon 1 | . . . . . . 1 . . . Parts Attached 108 | 6 15 18 6 2 3 11 31 6 10 Power 16 | 1 3 2 1 1 . . 6 1 1 Engine 10 | 1 3 2 1 1 . . 2 . . Core 5 | . . . . . . . 4 1 . Reactor 1 | . . . . . . . . . 1 Propulsion 30 | 3 5 6 2 1 2 5 5 . 1 Treads 1 | . . . . . . . 1 . . Leg 10 | 3 . . . . 2 3 1 . 1 Wheel 4 | . 2 . . . . 2 . . . Hover 3 | . . . . . . . 3 . . Flight 12 | . 3 6 2 1 . . . . . Utility 37 | . 2 7 2 . 1 4 11 3 7 Device 17 | . 1 2 . . . 3 7 3 1 Storage 5 | . 1 3 . . . . . . 1 Processor 6 | . . . . . . 1 2 . 3 Hackware 3 | . . . 2 . . . 1 . . Protection 6 | . . 2 . . 1 . 1 . 2 Artifact . | . . . . . . . . . . Weapon 25 | 2 5 3 1 . . 2 9 2 1 Energy Gun 13 | 1 1 1 . . . 2 6 1 1 Energy Cannon 1 | . . . . . . . . 1 . Ballistic Gun 7 | 1 3 2 1 . . . . . . Ballistic Cannon 1 | . . . . . . . 1 . . Launcher . | . . . . . . . . . . Special Weapon 1 | . . . . . . . 1 . . Impact Weapon 2 | . 1 . . . . . 1 . . Slashing Weapon . | . . . . . . . . . . Piercing Weapon . | . . . . . . . . . . Special Melee Weapon . | . . . . . . . . . . Unidentified Prototypes 3 | . . . . . . 1 . . 2 Corrupted Parts 1 | . . . . . . . 1 . . System Corruption 1 | . . . . . . . 1 . . Parts Lost 60 | . 5 5 3 . 3 2 19 16 7 Power 10 | . 4 . . . . . 4 2 . Propulsion 16 | . 1 2 2 . 2 . 4 4 1 Utility 21 | . . 2 1 . 1 1 6 5 5 Weapon 13 | . . 1 . . . 1 5 5 1 Highest Loss Streak 16 | . 2 3 3 . 3 2 8 16 5 To Critical Strikes . | . . . . . . . . . . Average Backups 7 | 1 4 7 9 8 9 9 8 8 4 Power 1 | . . 1 3 2 2 2 1 1 1 Propulsion . | 1 2 1 1 . . . . . . Utility 2 | . . 2 3 4 3 3 1 3 1 Weapon 2 | . 2 1 2 2 3 3 2 1 2 Tool/Special . | . . . . . . . . . . Unused Backups 18 | . 4 4 . . . 5 3 . 2 Power 1 | . . 1 . . . . . . . Propulsion 5 | . 4 . . . . . 1 . . Utility 9 | . . 3 . . . 5 1 . . Weapon 2 | . . . . . . . . . 2 Tool/Special 1 | . . . . . . . 1 . . Average Slot Usage (%) 86 | . 85 93 95 97 90 96 94 80 34 Engine 6 | . 7 9 9 12 13 12 5 . . Core 2 | . . . . . . . 4 8 . Leg 12 | . 7 . . . . 20 21 11 2 Hover 1 | . . . . . . . 3 2 . Flight 9 | . 16 31 33 38 33 9 . . . Device 12 | . 9 11 9 7 7 8 17 18 3 Storage 6 | . 11 11 9 7 7 6 5 4 . Processor 4 | . . . . . . 3 5 9 12 Hackware 5 | . . . 9 7 7 6 6 10 7 Protection 2 | . . 7 6 7 7 6 . . 4 Energy Gun 9 | . 8 3 4 7 7 11 12 12 . Ballistic Gun 4 | . 17 15 7 7 4 . . . . Impact Weapon 2 | . 1 3 5 . . 5 1 . . Peak Build Rating 78 | 5 7 12 18 20 23 51 76 78 66 Average Rating 38 | 3 6 9 16 19 18 39 63 67 36 On Entrance 22 | . 5 6 12 18 19 23 48 73 16 Avg Prop Armor Cover (%) 8 | . . . . . 13 6 7 3 26 Naked Turns . | . . . . . . . . . . Heaviest Build 56 | 7 10 21 26 27 27 41 56 55 32 Greatest Support 72 | 20 20 21 26 31 31 72 56 47 30 Greatest Overweight (x) 1 | . . . . . . . 1 1 1 Average Overweight (x) . | . . . . . . . . . . Largest Inventory Capacity 10 | 5 5 10 10 10 10 10 10 10 10 Average Capacity 8 | 5 5 8 10 10 10 10 10 9 5 Most Carried 10 | 5 5 10 10 9 10 10 10 10 5 Average Carried 7 | 1 4 7 9 8 9 9 8 8 4 Final Capacity 10 | 5 5 10 10 10 10 10 10 5 5 Final Carried 10 | 5 5 10 10 8 10 10 10 5 5 Class Distribution -------------------- 31% | Scavenger-Mutant 28% | Scavenger-Gunner 14% | Mutant 10% | Hacker-Mutant 7% | Scientist-Mutant 4% | Scavenger-Sprinter Dominant Class ---------------- Scavenger-Mutant | -10/Materials Scavenger-Mutant | -9/Materials Scavenger-Sprinter | -8/Materials Scavenger-Sprinter | -7/Factory Scavenger-Sprinter | -7/DSF Scavenger-Mutant | -6/Factory Scavenger-Gunner | -5/Factory Scavenger-Gunner | -4/Factory Hacker-Mutant | -3/Research Resources | -11 -10 -9 -8 -7 -7 -6 -5 -4 -3 ----------- Run | Yrd Mat Mat Mat Fac DSF Fac Fac Fac Res Matter Collected 1595 | 273 364 239 94 . . 144 481 . . Remotely . | . . . . . . . . . . Salvage Created 1761 | 32 547 258 94 . . 144 605 81 . Parts 103 | 2 23 27 8 . . 7 30 6 . Haulers Intercepted . | . . . . . . . . . . Recyclers Shooed 6 | . 2 . . . . 2 2 . . Parts Field Recycled 30 | . . . . . . 9 18 1 2 Retrieved Matter 150 | . . . . . . 61 76 3 10 Parts Self-Destructed . | . . . . . . . . . . Prevented . | . . . . . . . . . . Parts Restored . | . . . . . . . . . . Kills | -11 -10 -9 -8 -7 -7 -6 -5 -4 -3 ------- Run | Yrd Mat Mat Mat Fac DSF Fac Fac Fac Res Combat Hostiles Destroyed 34 | 1 12 9 4 . . . 7 1 . Melee 1 | . . . 1 . . . . . . Guns 29 | 1 12 9 2 . . . 4 1 . Cannons 3 | . . . . . . . 3 . . Classes Destroyed 9 | 1 4 1 . . . 1 2 . . Worker 1 | . . . . . . 1 . . . Builder 2 | . 1 . . . . . . 1 . Recycler 4 | . 2 . . . . 1 1 . . Watcher 2 | . 2 . . . . . . . . Swarmer 15 | . 6 6 3 . . . . . . Grunt 8 | 1 6 . . . . . 1 . . Brawler 1 | . . . . . . . 1 . . Sentry 5 | . . 3 1 . . . 1 . . Programmer 5 | . . . . . . . 4 1 . Best Kill Streak 7 | 1 7 5 3 . . 2 3 2 . Combat Bots Only 6 | 1 6 5 3 . . . 3 1 . Max Kills in Single Turn 1 | 1 1 1 1 . . 1 1 1 . Gunslinging . | . . . . . . . . . . Exploded . | . . . . . . . . . . Melee 1 | . . . 1 . . . . . . Uniques/NPCs Destroyed . | . . . . . . . . . . Combat | -11 -10 -9 -8 -7 -7 -6 -5 -4 -3 -------- Run | Yrd Mat Mat Mat Fac DSF Fac Fac Fac Res Hostile Shots Fired 715 | 8 112 60 37 . 15 6 183 107 187 Missed 261 | 2 41 20 11 . 8 1 58 36 84 Hits 454 | 6 71 40 26 . 7 5 125 71 103 Melee 6 | . . . . . 4 1 1 . . Projectile 448 | 6 71 40 26 . 3 4 124 71 103 AOE 2 | . . . . . 1 . 1 . . Critical Strikes 20 | . . . 1 . . 1 12 3 3 Part Disruptions 1 | . . . . . . . 1 . . Damage Taken 8055 | 68 706 466 218 . 196 117 2640 1418 2226 Core 2436 | 23 170 54 37 . . 20 395 428 1309 Absorbed by Shields 102 | . . . . . 23 . 79 . . Redirected to Shielding 63 | . . . . . . . . . 63 Core Remaining (%) 76 | 90 22 86 93 . 100 97 60 62 . Volleys Fired 182 | 6 54 33 13 . 1 8 50 15 2 Largest 3 | 2 2 2 2 . 1 2 3 3 1 Hottest 215 | 70 70 40 79 . 56 136 193 215 94 Shots Fired 375 | 12 100 66 20 . 1 16 125 33 2 Gun 339 | 12 100 66 20 . 1 16 99 23 2 Cannon 35 | . . . . . . . 25 10 . Launcher . | . . . . . . . . . . Special 1 | . . . . . . . 1 . . Kinetic 175 | 6 66 66 12 . . . 25 . . Thermal 115 | 6 34 . 8 . 1 11 38 15 2 Explosive . | . . . . . . . . . . Electromagnetic 84 | . . . . . . 5 61 18 . Robot Hit Streak 12 | 4 12 9 5 . . 3 12 7 1 Robot Miss Streak 7 | 1 7 3 4 . 1 1 4 3 1 Penetration Max . | . . . . . . . . . . Secondary Targets 3 | . 2 . . . . . 1 . . Max Gunslinging Chain 1 | . 1 . . . . . 1 . . Shots Hit Robots 250 | 8 67 38 18 . . 12 85 21 1 Core Hits 93 | 2 26 16 6 . . 7 29 7 . Critical Kills . | . . . . . . . . . . Critical Parts Destroyed 2 | . . . . . . 1 1 . . Critical Strikes 16 | . 3 . 2 . . 2 5 4 . Burn 8 | . 3 . 2 . . 1 1 1 . Destroy 2 | . . . . . . 1 1 . . Blast 2 | . . . . . . . 2 . . Corrupt 4 | . . . . . . . 1 3 . Melee Attacks 21 | . 4 4 12 . . 1 . . . Impact 21 | . 4 4 12 . . 1 . . . Slashing . | . . . . . . . . . . Piercing . | . . . . . . . . . . Sneak Attacks 3 | . 3 . . . . . . . . Combat Hostiles . | . . . . . . . . . . Follow-up Attacks . | . . . . . . . . . . Damage Inflicted 4181 | 108 961 378 279 . . 240 1865 322 28 Guns 3056 | 108 766 378 174 . . 209 1151 242 28 Cannons 759 | . . . . . . . 679 80 . Explosions 35 | . . . . . . . 35 . . Melee 331 | . 195 . 105 . . 31 . . . Ramming . | . . . . . . . . . . Kinetic 1713 | 59 482 378 115 . . . 679 . . Thermal 1496 | 49 284 . 59 . . 148 715 213 28 Explosive . | . . . . . . . . . . Electromagnetic 641 | . . . . . . 61 471 109 . Impact 331 | . 195 . 105 . . 31 . . . Slashing . | . . . . . . . . . . Piercing . | . . . . . . . . . . Highest Corruption 17 | . . . . . . . 17 12 2 Average Corruption 11 | . . . . . . . 11 6 1 Corruption Purged . | . . . . . . . . . . Corruption Blocked . | . . . . . . . . . . Effects 31 | . . . . . . . 28 3 . Message Errors 5 | . . . . . . . 5 . . Matter Fused 10 | . . . . . . . 10 . . Heat Flow Errors 3 | . . . . . . . 3 . . Energy Discharges 2 | . . . . . . . 2 . . Data Loss (minor) 2 | . . . . . . . 1 1 . Data Loss (major) 6 | . . . . . . . 5 1 . Weapon Failures 3 | . . . . . . . 2 1 . Overload Shots . | . . . . . . . . . . Overflow Damage 46 | . 14 . 19 . . . 13 . . Projectiles 12 | . . . . . . . 12 . . Explosions 1 | . . . . . . . 1 . . Melee 33 | . 14 . 19 . . . . . . Knockbacks 6 | . 1 . 1 . . . 4 . . Impact 2 | . 1 . 1 . . . . . . Kinetic 4 | . . . . . . . 4 . . Secondary . | . . . . . . . . . . Self-Inflicted Damage 42 | . . . . . . . 42 . . Shots 1 | . . . . . . . 1 . . Rammed . | . . . . . . . . . . Targets Rammed . | . . . . . . . . . . Kicked . | . . . . . . . . . . Crushed . | . . . . . . . . . . Highest Temperature 354 | 90 105 29 174 40 . 111 354 123 281 Average Temperature 58 | 52 38 8 80 21 . 45 80 49 97 Received Heat Transfer 1063 | 36 165 117 36 . . 54 372 87 196 Siege Activations . | . . . . . . . . . . Martial Activations . | . . . . . . . . . . Shielding Activations . | . . . . . . . . . . Robots Disrupted 1 | . . . . . . . 1 . . Combat Hostiles 1 | . . . . . . . 1 . . Robots Corrupted 2 | . 1 . 1 . . . . . . Combat Hostiles 1 | . . . 1 . . . . . . Parts Fried 1 | . 1 . . . . . . . . Impact Corruptions 3 | . 1 . 2 . . . . . . Robots Melted . | . . . . . . . . . . Combat Hostiles . | . . . . . . . . . . Parts Melted 10 | . 2 . . . . . 6 2 . Heat Transferred 3433 | 148 978 . 296 . . 407 1160 407 37 Parts Sabotaged . | . . . . . . . . . . Parts Stolen . | . . . . . . . . . . Parts Stripped . | . . . . . . . . . . Power Chain Reactions 1 | . . . . . . . 1 . . Alert | -11 -10 -9 -8 -7 -7 -6 -5 -4 -3 ------- Run | Yrd Mat Mat Mat Fac DSF Fac Fac Fac Res Maximum Alert Level 1 | . . . . . . . . . 1 Low Security (%) 99 | 100 100 100 100 100 100 100 100 100 89 Level 1 . | . . . . . . . . . 10 Level 2 . | . . . . . . . . . . Level 3 . | . . . . . . . . . . Level 4 . | . . . . . . . . . . Level 5 . | . . . . . . . . . . High Security . | . . . . . . . . . . Max Security . | . . . . . . . . . . Peak Influence 260 | 20 127 154 65 7 4 14 75 25 260 Initial 6 | . 6 . . 2 4 . . . . Average 18 | 1 59 41 20 5 1 1 7 1 40 Influence Increases 1349 | 20 299 253 132 5 . 46 254 52 288 Destroy 0b10 Robot/C 680 | 20 240 180 80 . . . 140 20 . Destroy 0b10 Robot/NC 45 | . 25 . . . . 10 5 5 . Destroy Leader 144 | . 34 50 20 . . . 40 . . Successful Hack 100 | . . 22 . 5 . 36 7 12 18 Disable Machine 60 | . . . 15 . . . 45 . . Destroy Structure 5 | . . 1 2 . . . 2 . . Lose Combat Pursuer 315 | . . . 15 . . . 15 15 270 Influence Decreases 1219 | 10 309 253 125 5 7 46 254 52 158 Entered New Map 12 | . 4 . . 5 3 . . . . Time Decay 560 | 10 151 99 50 . . 46 152 22 30 Search Patrol Dispatched 100 | . . . . . . . . . 100 Lost Part 244 | . 50 10 20 . 4 . 102 30 28 Purge Threat 303 | . 104 144 55 . . . . . . Squads Dispatched 12 | . . . 1 . 1 4 1 2 3 Investigation 3 | . . . . . . . . 1 2 Extermination 4 | . . . . . . 1 1 1 1 Reinforcement 4 | . . . 1 . 1 2 . . . Assault . | . . . . . . . . . . Garrison 1 | . . . . . . 1 . . . Intercept . | . . . . . . . . . . Searches Triggered 1 | . . . . . . . . . 1 Construction Impeded . | . . . . . . . . . . Haulers Reinforced . | . . . . . . . . . . Active Scanning Responses . | . . . . . . . . . . Cargo Convoy Interrupts . | . . . . . . . . . . Stealth | -11 -10 -9 -8 -7 -7 -6 -5 -4 -3 --------- Run | Yrd Mat Mat Mat Fac DSF Fac Fac Fac Res Distress Signals 7 | . 3 1 3 . . . . . . Communications Jammed . | . . . . . . . . . . Distress Signals . | . . . . . . . . . . Times Spotted 94 | 1 16 12 9 . 4 6 15 7 24 Peak Tracking Total 19 | 1 4 5 4 . 4 4 5 5 19 Tactical Retreats 6 | . . . 1 . . . 2 1 2 ECM-based Alert Blocks 1 | . . . . . . . 1 . . Traps | -11 -10 -9 -8 -7 -7 -6 -5 -4 -3 ------- Run | Yrd Mat Mat Mat Fac DSF Fac Fac Fac Res Traps Triggered 3 | . 1 . . . 1 . 1 . . Indirectly . | . . . . . . . . . . Trap Hack Attempts . | . . . . . . . . . . Triggered . | . . . . . . . . . . Disarmed . | . . . . . . . . . . Reprogrammed . | . . . . . . . . . . Reused . | . . . . . . . . . . Traps Extracted . | . . . . . . . . . . Installed . | . . . . . . . . . . Triggered . | . . . . . . . . . . Machines | -11 -10 -9 -8 -7 -7 -6 -5 -4 -3 ---------- Run | Yrd Mat Mat Mat Fac DSF Fac Fac Fac Res Machines Disabled 4 | . . . 1 . . . 3 . . Max in Single Turn 1 | . . . 1 . . . 1 . . Machines Repaired . | . . . . . . . . . . Machines Dismantled . | . . . . . . . . . . Machines Sabotaged . | . . . . . . . . . . Overloaded Fab Kills . | . . . . . . . . . . Hacking | -11 -10 -9 -8 -7 -7 -6 -5 -4 -3 --------- Run | Yrd Mat Mat Mat Fac DSF Fac Fac Fac Res Machines Accessed 28 | . 2 3 1 2 . 5 8 4 3 Terminals 16 | . 1 2 1 2 . 3 4 1 2 Fabricators 5 | . . . . . . . 2 2 1 Repair Stations 2 | . 1 . . . . . 1 . . Recycling Units . | . . . . . . . . . . Scanalyzers 4 | . . 1 . . . 2 . 1 . Garrison Access 1 | . . . . . . . 1 . . Total Hacks 81 | . 6 15 4 3 . 17 14 15 7 Successful 40 | . 3 10 1 1 . 10 3 11 1 Failed 40 | . 3 4 3 2 . 7 11 4 6 Catastrophic 5 | . . . . . . 1 3 1 . Database Lockouts 1 | . . 1 . . . . . . . Manual 9 | . . 3 2 . . . 3 . 1 Terminals 47 | . 5 9 4 3 . 9 9 3 5 Fabricators 11 | . . . . . . . 3 6 2 Repair Stations 2 | . 1 . . . . . 1 . . Recycling Units . | . . . . . . . . . . Scanalyzers 20 | . . 6 . . . 8 . 6 . Garrison Access 1 | . . . . . . . 1 . . Terminal Hacks 20 | . 3 5 1 1 . 5 2 2 1 Record 3 | . . . . . . 2 . . 1 Prototype ID Bank 4 | . 1 2 . . . . 1 . . Open DSF 2 | . . . . 1 . 1 . . . Alert Level 1 | . . . . . . . . 1 . Unreport Threat 3 | . 1 1 1 . . . . . . Locate Traps 3 | . 1 . . . . 1 . 1 . Dispatch Records 1 | . . 1 . . . . . . . Reinforcement Status 1 | . . 1 . . . . . . . Recall Investigation 1 | . . . . . . . 1 . . Zone Layout 1 | . . . . . . 1 . . . Fabricator Hacks 4 | . . . . . . . 1 3 . Network Status 1 | . . . . . . . . 1 . Load Schematic 2 | . . . . . . . 1 1 . Build 1 | . . . . . . . . 1 . Repair Station Hacks . | . . . . . . . . . . Recycling Unit Hacks . | . . . . . . . . . . Scanalyzer 16 | . . 5 . . . 5 . 6 . Insert Component 3 | . . 2 . . . . . 1 . Analyze 4 | . . 2 . . . . . 2 . Retrieve Study 9 | . . 1 . . . 5 . 3 . Garrison Access Hacks . | . . . . . . . . . . Unauthorized Hacks . | . . . . . . . . . . Terminals . | . . . . . . . . . . Fabricators . | . . . . . . . . . . Repair Stations . | . . . . . . . . . . Recycling Units . | . . . . . . . . . . Scanalyzers . | . . . . . . . . . . Garrison Access . | . . . . . . . . . . Data Cores Recovered . | . . . . . . . . . . Used . | . . . . . . . . . . Hacking Detections 27 | . 2 3 1 2 . 4 8 4 3 Full Trace Events 3 | . . . . . . . . 1 2 Feedback Events . | . . . . . . . . . . Feedback Blocked . | . . . . . . . . . . Robot Schematics Acquired . | . . . . . . . . . . Robots Built . | . . . . . . . . . . Authchips . | . . . . . . . . . . Time . | . . . . . . . . . . Total Robot Build Rating . | . . . . . . . . . . Part Schematics Acquired 3 | . . 2 . . . . . 1 . Parts Built 2 | . . . . . . . . 2 . Authchips . | . . . . . . . . . . Time 47 | . . . . . . . . 47 . Total Part Build Rating 10 | . . . . . . . . 10 . Part Studies Acquired 9 | . . 1 . . . 5 . 3 . Parts Repaired . | . . . . . . . . . . Time . | . . . . . . . . . . Parts Recycled . | . . . . . . . . . . Recycled Matter . | . . . . . . . . . . Retrieved Matter . | . . . . . . . . . . Retrieved Components . | . . . . . . . . . . Parts Scanalyzed 3 | . . 2 . . . . . 1 . Part Schematics Acquired 3 | . . 2 . . . . . 1 . Parts Damaged . | . . . . . . . . . . Bothacking | -11 -10 -9 -8 -7 -7 -6 -5 -4 -3 ------------ Run | Yrd Mat Mat Mat Fac DSF Fac Fac Fac Res Used RIF Installer . | . . . . . . . . . . Robots Hacked . | . . . . . . . . . . Non-combat . | . . . . . . . . . . Combat . | . . . . . . . . . . Robot Hacks Applied . | . . . . . . . . . . Relay Couplers Released . | . . . . . . . . . . Fabnet Peak Effective % . | . . . . . . . . . . Robots Rewired . | . . . . . . . . . . Allies Hacked . | . . . . . . . . . . Hacks Repelled . | . . . . . . . . . . Allies | -11 -10 -9 -8 -7 -7 -6 -5 -4 -3 -------- Run | Yrd Mat Mat Mat Fac DSF Fac Fac Fac Res Total Allies . | . . . . . . . . . . Largest Group . | . . . . . . . . . . Highest-Rated Group . | . . . . . . . . . . Highest-Rated Ally . | . . . . . . . . . . Total Orders . | . . . . . . . . . . Ally Attacks . | . . . . . . . . . . Total Damage . | . . . . . . . . . . Kills . | . . . . . . . . . . Allies Corrupted . | . . . . . . . . . . Allies Melted . | . . . . . . . . . . Intel | -11 -10 -9 -8 -7 -7 -6 -5 -4 -3 ------- Run | Yrd Mat Mat Mat Fac DSF Fac Fac Fac Res Active Infowar (turns) 798 | . . . . . . 196 70 374 158 Sensors 546 | . . . . . . . 14 374 158 IFF 196 | . . . . . . 196 . . . ECM 84 | . . . . . . . 70 14 . Robot Analysis Total . | . . . . . . . . . . Derelict Logs Recovered . | . . . . . . . . . . Drone Launches . | . . . . . . . . . . Drone Recoveries . | . . . . . . . . . . Exploration | -11 -10 -9 -8 -7 -7 -6 -5 -4 -3 ------------- Run | Yrd Mat Mat Mat Fac DSF Fac Fac Fac Res Turns Passed 2996 | 162 386 292 142 18 48 438 862 391 257 Spaces Moved 2681 | 145 320 359 172 52 105 391 542 238 357 Core 420 | 68 . . . . . . . 76 276 Treads . | . . . . . . . . . . Legs 1195 | 77 41 . . . . 292 542 162 81 Wheels 11 | . 11 . . . . . . . . Hover . | . . . . . . . . . . Flight 1055 | . 268 359 172 52 105 99 . . . Fastest Speed 28 | 50 37 34 31 28 28 54 105 50 50 Average Speed 76 | 87 49 34 31 28 31 93 115 137 61 Slowest Speed 190 | 120 120 34 31 28 54 110 190 190 170 Overloaded Moves . | . . . . . . . . . . Propulsion Burnouts . | . . . . . . . . . . Robots Hopped 8 | . . 5 1 . 2 . . . . Potential Cave-ins . | . . . . . . . . . . Cave-ins Triggered . | . . . . . . . . . . Exploration Rate (%) 22 | 5 40 27 21 1 87 12 12 7 12 Regions Visited 9 Branch Regions . Pre-discovered Areas . | . . . . . . . . . . Known Exits Taken 1 | . . . . 1 . . . . . Unknown Exits Taken 7 | 1 1 1 1 . . 1 1 1 . Scrap Searched . | . . . . . . . . . . Spaces Dug 3 | . . 1 2 . . . . . . Terrain Destroyed 4 | . . 1 2 . . . 1 . . Melee 3 | . . 1 2 . . . . . . Projectile 1 | . . . . . . . 1 . . AOE . | . . . . . . . . . . Terrain Rammed . | . . . . . . . . . . Walls Destroyed . | . . . . . . . . . . Machines Disabled . | . . . . . . . . . . Actions | -11 -10 -9 -8 -7 -7 -6 -5 -4 -3 --------- Run | Yrd Mat Mat Mat Fac DSF Fac Fac Fac Res Total 3238 | 167 444 461 216 54 116 448 668 274 390 Wait 62 | . 22 11 3 . . 7 5 2 12 Move 2656 | 144 319 348 169 51 100 390 541 237 357 Hop 8 | . . 5 1 . 2 . . . . Pick Up 87 | 8 14 20 4 . 2 12 22 3 2 Fast Attach 43 | 5 4 1 2 . 2 5 15 1 8 Attach 51 | . 3 8 4 2 1 5 16 9 3 Detach 13 | . . . 1 . 1 1 2 5 3 Swap 45 | 1 10 15 6 1 . 5 7 . . Drop 64 | 3 14 16 1 . 1 14 10 2 3 Fire 182 | 6 54 33 13 . 1 8 50 15 2 Melee 21 | . 4 4 12 . . 1 . . . Ram . | . . . . . . . . . . Kick . | . . . . . . . . . . Crush . | . . . . . . . . . . Escape Stasis 6 | . . . . . 6 . . . . Rewire . | . . . . . . . . . . Trap . | . . . . . . . . . . Miscellaneous . | . . . . . . . . . . Route ------- -11/Scrapyard -10/Materials -9/Materials -8/Materials -7/Factory -7/DSF -6/Factory -5/Factory -4/Factory -3/Research History --------- Turn | Location | Event 2 | -11/Scrapyard | Met Revision 17 126 | -11/Scrapyard | Discovered new exit (range 8) 163 | -11/Scrapyard | Entered Materials 290 | -10/Materials | Core integrity fell below 50% 303 | -10/Materials | Build established: Mutant 452 | -10/Materials | Discovered new exit (range 9) 549 | -10/Materials | Entered another Materials area 549 | -9/Materials | Evolved 2 slots: Propulsion x1, Utility x1 632 | -9/Materials | Build established: Scavenger-Mutant 640 | -9/Materials | Central database locked down 718 | -9/Materials | Discovered new exit (range 15) 766 | -9/Materials | Lost 3 parts (1n1u1w) 841 | -9/Materials | Entered another Materials area 841 | -8/Materials | Evolved 2 slots: Propulsion x1, Utility x1 922 | -8/Materials | Lost 3 parts (2n1u) 981 | -8/Materials | Discovered new exit (range 5) 983 | -8/Materials | Entered Factory 983 | -7/Factory | Evolved 2 slots: Power x1, Propulsion x1 988 | -7/Factory | Identified exit to DSF 1001 | -7/Factory | Entered DSF 1029 | -7/DSF | Additional patrols routed to DSF 1040 | -7/DSF | Discovered new exit (range 16) 1049 | -7/DSF | Entered Factory 1049 | -6/Factory | Evolved 2 slots: Utility x1, Weapon x1 1066 | -6/Factory | Lost 3 parts (2n1u) 1089 | -6/Factory | Spotted B-75 Beast 1435 | -6/Factory | Garrison activated, responded to threat 1456 | -6/Factory | Discovered new exit (range 15) 1487 | -6/Factory | Entered another Factory area 1487 | -5/Factory | Evolved 2 slots: Utility x2 1688 | -5/Factory | Lost 3 parts (1p1u1w) 1807 | -5/Factory | System corruption reached 10% 1842 | -5/Factory | Lost 8 parts (1p3n2u2w) 2077 | -5/Factory | Build established: Scavenger-Gunner 2205 | -5/Factory | Lost 6 parts (1p1n2u2w) 2315 | -5/Factory | Discovered new exit (range 8) 2349 | -5/Factory | Entered another Factory area 2349 | -4/Factory | Evolved 2 slots: Utility x2 2666 | -4/Factory | Fabricated Arm. Leg? 2705 | -4/Factory | System corruption reached 10% 2734 | -4/Factory | Discovered new exit (range 8) 2740 | -4/Factory | Entered Research 2740 | -3/Research | Evolved 2 slots: Propulsion x1, Utility x1 2755 | -3/Research | Lost 16 parts (2p4n5u5w) 2884 | -3/Research | Found Prototype Processor 2884 | -3/Research | Identified Spectral Analyzer 2958 | -3/Research | Lost 5 parts (1n3u1w) 2974 | -3/Research | Core integrity fell below 50% 2989 | -3/Research | Core integrity fell below 20% 2990 | -3/Research | Search patrols dispatched 2997 | -3/Research | Destroyed by P-80 Master with Gamma Rifle Last Messages --------------- 02884_ Faulty integration triggers heat surge (+316). 02898_ Imp. Sensor Array destroyed. 02907_ Quantum Rifle destroyed. 02908_ Imp. Medium Armor Plating destroyed. 02910_ K-01 Serf cleans the Terminal. 02915_ Critical hit (Burn: +50). 02919_ Dropped Rnf. Fission Core. 02926_ Enh. Biometal Leg destroyed. 02927_ System Shield destroyed. 02938_ Connecting with Terminal... 02938_ ALERT: Suspicious activity at Terminal R017. Dispatching Investigation squad. 02974_ Acquired Adv. Reaction Control System. 02975_ Dropped Imp. Power Shielding. 02981_ S-43 Plague destroyed. 02981_ Adv. Reaction Control System destroyed. 02985_ Imp. Target Analyzer destroyed. 02988_ S-43 Plague destroyed. 02990_ ALERT: Heightened foreign activity detected, multiple search patrols dispatched. Map ----- +----------------------------------------------------+ | ?????????????????????????????????????????????????? | | ?????????????????????????????????????????????????? | | ?????????????????????????????????????????????????? | | ?????????????????????????????????????????????????? | | ?????????????????????????????????????????????????? | | ?????????????????????????????????????????????????? | | ?????????????????????????????????????????????????? | | ???????????????????##########????????????????????? | | ???????????????????# #????????????????????? | | ???????????????????# #????????????????????? | | ???????????????????# #????????????????????? | | ???????????????????# #??#########?????????? | | ???????????????????# """#??# ??????????? | | ??????############## """#??# ???? #????? | | ??????# # """#### """"" +????? | | ??????# # / + """"" #????? | | ??????# # # # """"" #????? | | ??????# ####+##### # * +????? | | ??????# # + #????? | | ??????# / # """"" #????? | | ??????# # + """"" #????? | | ??????# + # """"" #????? | | ??????# ! # ###### # #????? | | ??????# # # s! # # ! #????? | | ??????# + pp= # ########+########## | | ??????# ###*%=@# #??????# | | ??????##############?#s%[ # #??????############ | | ?????????????????????#=s!!# #?????????????????# | | ?????????????????????# !!!# #?????????????????# | | ?????????????????????# !! # #?????????????????# | | ?????????????????????###### ??????????????????# | | ??????????????????????????# ??????????????????# | | ??????????????????????????# ??????????????????# | | ??????????????????????????# ??????????######### | | ??????????????????????????# #?????????+ | | ??????????????????????????+ +?????????# | | ??????????????????????????# ########### | | ??????????????????????????# # / | | ??????????????????????????# # # | | ??????????????????????????# # # | | ??????????????????????????# # | | ??????????????????????????# # ###""" "" | | ??????????????????????????# / #?#"""T"" | | ??????????????????????????# # #?####### | | ??????????????????????????# # #???????? | | ??????????????????????????# ################### | | ??????????????????????????# | | ??????????????????????????# | | ??????????????????????????# | | ??????????????????????????# | +----------------------------------------------------+ Best States ------------- Heat Dissipation 94 Energy Generation 39 Energy Capacity 365 Matter Stores 350 Matter Capacity 350 Sight Range 16 Robot Scan Range 16 Terrain Scan Density 10 ECM Strength 2 Additional Mass Support 6 Armor Coverage 225 Power Shielding 66 Evasion (%) 64 Targeting Accuracy 8 Target Analysis 6 Salvage Targeting 4 Offensive Hacking 10 Defensive Hacking 20 Item Schematics ----------------- Med. Storage Unit | -9/Materials | Scanalyzed Flight Unit | -9/Materials | Scanalyzed Arm. Leg | -4/Factory | Scanalyzed Robot Schematics ------------------ None Fabricated ------------ Arm. Leg | x2 | -4/Factory Repaired ---------- Nothing Studied --------- Flight Unit | -9/Materials | Hacked Imp. Ion Engine | -6/Factory | Hacked Lgt. Ion Engine | -6/Factory | Hacked Imp. Carbon-fiber Leg | -6/Factory | Hacked Flexi-carbon Leg | -6/Factory | Hacked Com. Wheel | -6/Factory | Hacked Arm. Leg | -4/Factory | Hacked Carbon-fiber Leg | -4/Factory | Hacked Neutrino Core | -4/Factory | Hacked Alien Tech Used ----------------- None Achievements -------------- A Problem For Future Me Heavy Suspicion Item+ Window Shopping Challenges ------------ None Game ------ Seed HypertargetingMyomerBlaster Manual? 0 Play Time 05:04:12 Cumulative 70.7 hours Start 2026.03.08 @ 16:34:23 End 2026.03.10 @ 23:20:16 Sessions 60 Manual Loads 0 Difficulty Rogue Special Mode None Game No. 16 Rogue 16 Adventurer 0 Explorer 0 Win Type - Total 0 Types 0/0/0/0/0/0/0/0/0/0 Lore% 13 Gallery% 27 Achievement% 17 Wizard Run 0 Options --------- Layout 0 ASCII 1 Keyboard 1 Movement Numpad Keybinds 1 Fullscreen 2 Font 20/X11 Map View 66x50 Zoom Use 0% Tactical HUD 1 Map Filters NONE Filters NONE Steam 1 RUN: 2f53507a-3d21-4f6e-b8b0-807a27314511